bitfinex/quotes_ETHUSD_20241024
["timestamp","ask_amount","ask_price","bid_price","bid_amount"]
[1729729798209,5.81101158,2511.5,2511.1,1.4935]
[1729729798570,1.82922158,2511.5,2511.1,5.47581]
[1729729798771,1.82922158,2511.4,2511.1,2.22500316]
[1729729799008,5.81098158,2511.5,2511.1,2.22500316]
[1729729799876,5.81098158,2511.5,2511.1,6.20731316]
[1729729800072,1.82922158,2511.5,2511.1,6.20731316]
[1729729800269,7.33296158,2511.6,2511.1,6.20731316]
[1729729800514,1.82922158,2511.5,2511.1,10.18954316]
[1729729800709,5.50374,2511.6,2511.1,6.20723316]
[1729729800915,7.33296158,2511.6,2511.1,10.18946316]
[1729729802809,3.35142158,2511.6,2511.2,3.98208]
[1729729803012,7.33273158,2511.8,2511.2,5.00102632]
[1729729803218,1.82922158,2511.7,2511.3,3.98186]
[1729729805021,7.33273158,2511.8,2511.3,3.98186]
[1729729805323,5.81053158,2511.8,2511.4,1.4935]
[1729729805501,5.81053158,2511.8,2511.4,5.47532]
[1729729806419,3.98105,2511.9,2511.4,6.52289463]
[1729729806719,5.81022158,2512.0,2511.5,3.98165]
[1729729806906,1.82922158,2511.9,2511.5,3.98165]
[1729729808124,5.81022158,2512.0,2511.5,5.03210446]
[1729729808709,1.82922158,2511.9,2511.5,5.03210446]
[1729729809222,5.81022158,2512.0,2511.5,5.03210446]
[1729729809624,1.82922158,2511.9,2511.5,5.03210446]
[1729729810001,9.79122158,2512.0,2511.5,5.03210446]
[1729729810204,1.82922158,2511.9,2511.5,5.03210446]
[1729729810392,3.98122,2511.8,2511.5,1.05045446]
[1729729810586,1.82922158,2511.7,2511.4,1.4935]
[1729729810791,11.28743158,2511.8,2511.4,1.4935]
[1729729810985,7.30614158,2511.8,2511.4,1.4935]
[1729729811528,5.81044158,2511.8,2511.4,1.4935]
[1729729811732,3.98122,2511.8,2511.4,1.4935]
[1729729812929,1.82922158,2511.9,2511.4,1.4935]
[1729729813127,3.98107,2511.9,2511.4,6.20572116]
[1729729813893,5.81029158,2511.9,2511.4,6.20572116]
[1729729814130,3.98107,2511.9,2511.4,6.20572116]
[1729729814428,5.81029158,2511.9,2511.4,6.20572116]
[1729729814929,3.98134,2511.8,2511.4,2.22396116]
[1729729815093,3.98137,2511.7,2511.4,1.4935]
[1729729816536,3.98124,2511.8,2511.4,1.4935]
[1729729818094,5.81029158,2511.9,2511.4,5.47534]
[1729729818442,3.98107,2511.9,2511.4,1.4935]
[1729729818596,5.81007158,2512.1,2511.5,3.9816]
[1729729818798,5.81017158,2512.0,2511.5,4.71203216]
[1729729819328,3.98108,2511.9,2511.5,0.73043216]
[1729729819707,3.98108,2511.9,2511.5,4.71209216]
[1729729819903,3.98089,2512.0,2511.6,3.98151]
[1729729820144,3.98089,2512.0,2511.7,1.4698]
[1729729820703,1.4957,2512.9,2511.9,5.81022158]
[1729729820914,1.4957,2512.9,2511.8,0.07962216]
[1729729820915,5.4752,2512.9,2512.3,1.4698]
[1729729821196,5.80894158,2512.8,2512.3,5.45019]
[1729729821409,3.97972,2512.8,2512.3,5.45019]
[1729729821751,3.9795,2512.9,2512.4,3.98023]
[1729729822039,3.97931,2513.0,2512.5,3.98004]
[1729729822249,5.80853158,2513.0,2512.6,1.4698]
[1729729822806,3.97931,2513.0,2512.6,1.4698]
[1729729823047,5.80853158,2513.0,2512.6,1.4698]
[1729729823544,3.97931,2513.0,2512.6,1.4698]
[1729729823748,5.80853158,2513.0,2512.6,1.4698]
[1729729823906,3.97955,2512.9,2512.6,1.4698]
[1729729824339,3.97955,2512.9,2512.6,2.014803]
[1729729824638,5.80853158,2513.0,2512.6,2.014803]
[1729729824851,9.78795158,2513.0,2512.6,2.014803]
[1729729825210,3.97948,2512.9,2512.6,2.014803]
[1729729826155,3.97931,2513.0,2512.6,5.994693]
[1729729826451,3.97931,2513.0,2512.7,1.18039646]
[1729729826865,5.80826158,2513.2,2512.7,5.16014646]
[1729729827023,3.97904,2513.2,2512.8,1.5042]
[1729729827358,5.80826158,2513.2,2512.8,1.5042]
[1729729827515,7.95812,2513.2,2512.9,0.66643465]
[1729729827863,3.97915,2513.1,2512.9,0.66643465]
[1729729828058,3.97915,2513.1,2512.8,1.5042]
[1729729828740,7.95814,2513.2,2512.8,1.5042]
[1729729828943,5.80868158,2512.9,2512.6,0.545003]
[1729729829264,3.97994,2512.6,2512.3,1.5042]
[1729729830121,3.97988,2512.7,2512.3,1.5042]
[1729729830316,5.80910158,2512.7,2512.3,4.23161316]
[1729729831161,3.97988,2512.7,2512.3,4.23161316]
[1729729831364,3.98013,2512.5,2512.3,4.23161316]
[1729729831571,3.98013,2512.5,2511.9,3.98094]
[1729729831572,1.82922158,2512.4,2512.0,1.5042]
[1729729831773,5.80963158,2512.3,2512.0,1.5042]
[1729729832063,7.96092,2512.3,2512.0,1.5042]
[1729729832264,7.9609,2512.3,2512.0,1.5042]
[1729729832568,3.98041,2512.3,2512.0,1.5042]
[1729729833254,3.98041,2512.3,2512.0,2.23566116]
[1729729833866,5.80941158,2512.5,2512.0,2.23566116]
[1729729834086,3.98019,2512.5,2512.0,6.21654116]
[1729729834245,3.97997,2512.6,2512.2,1.5042]
[1729729834440,3.97989,2512.7,2512.3,0.548485]
[1729729834668,3.97989,2512.7,2512.2,5.48462]
[1729729835380,6.97957,2512.9,2512.3,1.5042]
[1729729835977,3.97967,2512.8,2512.3,5.4846]
[1729729836383,3.97957,2512.9,2512.4,3.98025]
[1729729836564,7.95913,2512.9,2512.5,0.548445]
[1729729838485,1.4085,2513.1,2512.6,1.5042]
[1729729838486,3.9793,2513.1,2512.6,1.5042]
[1729729838645,3.97943,2513.0,2512.6,1.5042]
[1729729839277,3.97914,2513.1,2512.6,1.5042]
[1729729839545,3.97914,2513.1,2512.7,0.2052645]
[1729729840963,3.97914,2513.1,2512.8,1.5042]
[1729729841990,6.97906,2513.2,2512.8,1.5042]
[1729729843264,3.97918,2513.1,2512.8,1.5042]
[1729729845239,3.97883,2513.4,2513.0,1.5042]
[1729729845395,3.97879,2513.4,2513.0,1.5042]
[1729729845694,3.97886,2513.3,2513.0,1.5042]
[1729729845985,3.97879,2513.4,2513.0,1.5042]
[1729729846350,7.95757,2513.4,2513.1,0.548366]
[1729729847074,3.97887,2513.3,2513.1,0.548366]
[1729729847280,3.97904,2513.2,2513.0,1.5042]
[1729729847481,3.97914,2513.1,2513.0,1.5042]
[1729729848588,3.979,2513.2,2513.0,1.5042]
[1729729861204,5.80489519,2513.3,2513.0,1.5042]
[1729729861535,9.78383519,2513.3,2513.0,1.5042]
[1729729861742,3.97914,2513.1,2513.0,1.5042]
[1729729862041,9.78385519,2513.3,2513.0,1.5042]
[1729729862243,9.78385519,2513.3,2513.0,2.052581]
[1729729862541,3.97911,2513.2,2513.0,2.052581]
[1729729862705,3.97911,2513.2,2513.0,1.5042]
[1729729862901,3.97911,2513.2,2512.8,0.832]
[1729729863541,3.97911,2513.2,2512.8,4.81161]
[1729729863715,3.97915,2513.1,2512.8,0.832]
[1729729863916,3.97915,2513.1,2512.9,0.50169245]
[1729729864340,5.80489519,2513.3,2512.9,0.50169245]
[1729729864656,3.979,2513.2,2512.9,0.50169245]
[1729729864845,3.97887,2513.3,2512.9,0.50169245]
[1729729865048,3.97887,2513.3,2513.0,0.53132825]
[1729729866452,3.97863,2513.5,2513.2,0.832]
[1729729866761,3.97958,2512.9,2512.6,0.05201788]
[1729729866933,3.97962,2512.8,2512.7,0.248949]
[1729729867132,3.98022,2512.5,2512.3,0.832]
[1729729867440,4.7326,2512.5,2512.4,0.24897774]
[1729729867650,3.98057,2512.2,2511.8,0.05201788]
[1729729867854,3.9797,2512.8,2512.2,4.73971]
[1729729868053,3.7524,2513.0,2511.9,0.30104651]
[1729729868054,2.57842519,2513.0,2512.4,3.98011]
[1729729868276,3.9798,2512.7,2512.5,0.24897473]
[1729729868570,5.80582519,2512.7,2512.2,3.98049]
[1729729868735,3.9798,2512.7,2512.3,0.72816141]
[1729729868936,3.9798,2512.7,2512.4,0.24898062]
[1729729869154,3.9798,2512.7,2512.3,0.47918079]
[1729729869364,3.97899,2513.2,2512.6,1.82602519]
[1729729869563,3.97899,2513.2,2512.7,4.73907]
[1729729869874,3.0,2513.3,2512.9,3.97944]
[1729729870254,4.82602519,2513.3,2512.9,3.97944]
[1729729870435,8.80496519,2513.3,2512.7,11.59922571]
[1729729870636,1.82602519,2513.1,2512.7,1.81380052]
[1729729870865,5.80540519,2513.0,2512.7,0.7593]
[1729729871065,5.80549519,2512.9,2512.7,0.7593]
[1729729871258,3.97947,2512.9,2512.5,20.7193]
[1729729871455,5.80549519,2512.9,2512.6,0.24895704]
[1729729871661,5.80575519,2512.8,2512.5,0.7593]
[1729729871868,3.97973,2512.8,2512.5,0.7593]
[1729729872266,0.7522,2513.0,2512.6,0.24896828]
[1729729872470,0.7522,2513.0,2512.5,1.28117908]
[1729729872471,4.73156,2513.0,2512.5,5.26119908]
[1729729872653,6.55758519,2513.0,2512.6,0.24896009]
[1729729872843,6.55758519,2513.0,2512.5,5.26126908]
[1729729873040,6.55758519,2513.0,2512.6,1.17310457]
[1729729873236,6.55758519,2513.0,2512.6,0.92414291]
[1729729873583,6.55729519,2513.2,2512.6,0.92414291]
[1729729873873,3.97873,2513.4,2513.0,3.97927]
[1729729874081,5.80475519,2513.4,2513.0,3.97927]
[1729729875287,8.80469519,2513.5,2513.0,3.97927]
[1729729875874,12.78329519,2513.5,2513.0,3.97927]
[1729729876070,3.9788,2513.4,2512.8,10.54446519]
[1729729876395,5.80482519,2513.4,2512.9,1.35838121]
[1729729876572,5.80482519,2513.4,2512.9,1.10944652]
[1729729877310,5.80482519,2513.4,2512.9,5.08879652]
[1729729878408,3.9788,2513.4,2512.9,5.08879652]
[1729729879013,5.80462519,2513.5,2513.0,3.97927]
[1729729879178,8.80449519,2513.6,2513.1,5.64518665]
[1729729880015,3.9786,2513.5,2513.1,1.66610665]
[1729729880311,5.80462519,2513.5,2513.1,1.66610665]
[1729729880516,3.9786,2513.5,2513.1,1.66610665]
[1729729881390,3.9786,2513.5,2513.2,0.56453767]
[1729729882677,3.97831,2513.7,2513.2,0.56453767]
[1729729882917,3.97831,2513.7,2513.3,0.7976]
[1729729883816,3.97831,2513.7,2513.3,0.87716766]
[1729729884024,7.956,2513.9,2513.5,1.82602519]
[1729729884191,3.97809,2513.8,2513.4,3.97863]
[1729729884379,3.97809,2513.8,2513.3,6.60243519]
[1729729884584,3.97809,2513.8,2513.4,1.05814052]
[1729729885180,1.82602519,2513.9,2513.4,1.05814052]
[1729729885377,3.97835,2513.6,2513.3,0.7976]
[1729729885581,1.82602519,2513.7,2513.3,0.7976]
[1729729886181,9.78223519,2513.8,2513.3,0.7976]
[1729729886512,5.80408519,2513.8,2513.3,4.7764]
[1729729886721,5.80408519,2513.8,2513.3,0.7976]
[1729729886885,3.97822,2513.7,2513.4,0.477646]
[1729729887086,5.80408519,2513.8,2513.4,0.477646]
[1729729887486,5.80424519,2513.7,2513.4,0.477646]
[1729729887923,3.97822,2513.7,2513.4,0.477646]
[1729729889489,1.82602519,2513.9,2513.4,0.477646]
[1729729889690,5.80402519,2513.9,2513.5,0.5254066]
[1729729891053,3.97804,2513.8,2513.5,0.5254066]
[1729729891557,5.80390519,2513.9,2513.5,0.5254066]
[1729729891738,3.97785,2514.0,2513.6,0.7976]
[1729729891943,6.56292519,2514.2,2513.6,4.77585]
[1729729892250,5.80352519,2514.2,2513.7,4.69084818]
[1729729892456,3.9775,2514.2,2513.7,4.69084818]
[1729729892700,5.80352519,2514.2,2513.7,4.69084818]
[1729729892850,3.9775,2514.2,2513.8,4.77559]
[1729729893783,3.9775,2514.2,2513.8,0.7976]
[1729729893992,3.97757,2514.1,2513.8,0.7976]
[1729729895285,3.97742,2514.2,2513.8,5.32448982]
[1729729895866,3.97731,2514.3,2513.8,5.32441982]
[1729729896074,3.97731,2514.3,2513.8,7.15044501]
[1729729896669,3.97731,2514.3,2513.8,5.32441982]
[1729729896879,3.97731,2514.3,2513.8,11.12840501]
[1729729897089,3.97731,2514.3,2513.9,1.18411332]
[1729729897588,3.97731,2514.3,2513.9,6.98793851]
[1729729897782,3.97731,2514.3,2514.0,0.7976]
[1729729898751,3.9771,2514.4,2514.0,0.7976]
[1729729899505,3.97725,2514.3,2514.0,0.7976]
[1729729899649,3.97725,2514.3,2514.1,0.77855385]
[1729729900753,3.97718,2514.4,2514.1,0.77855385]
[1729729903451,3.97726,2514.3,2514.1,0.77855385]
[1729729903655,3.97726,2514.3,2514.0,0.7976]
[1729729904101,3.9771,2514.4,2514.0,2.70317019]
[1729729904299,3.9771,2514.4,2514.0,0.877145]
[1729729904953,3.9771,2514.4,2514.0,2.70317019]
[1729729905158,3.9771,2514.4,2514.1,1.18428535]
[1729729905860,3.97728,2514.3,2514.1,1.18428535]
[1729729906291,3.9771,2514.4,2514.1,1.18428535]
[1729729906685,3.97729,2514.3,2514.1,1.18428535]
[1729729906991,3.97729,2514.3,2514.0,0.7976]
[1729729906992,3.97747,2514.2,2514.0,0.7976]
[1729729908995,3.97747,2514.2,2513.9,1.18411332]
[1729729909391,9.78046519,2514.4,2513.9,1.18411332]
[1729729909585,5.80323519,2514.4,2513.9,1.18411332]
[1729729909829,3.97726,2514.3,2513.9,5.16198332]
[1729729910125,3.97726,2514.3,2514.0,0.77856085]
[1729729910326,3.97726,2514.3,2513.9,1.18411332]
[1729729912599,3.97726,2514.3,2513.8,6.60165519]
[1729729913107,3.97726,2514.3,2513.8,10.57961519]
[1729729913625,3.97726,2514.3,2513.8,8.75359]
[1729729913826,3.97726,2514.3,2513.8,4.77556]
[1729729914508,3.97726,2514.3,2513.8,8.75351]
[1729729914711,3.97726,2514.3,2513.9,1.05795352]
[1729729916811,3.97726,2514.3,2513.9,5.03583352]
[1729729917650,3.97726,2514.3,2513.9,1.05795352]
[1729729918748,3.97726,2514.3,2513.9,5.03576352]
[1729729919610,3.97726,2514.3,2513.9,5.03574352]
[1729729919810,3.97726,2514.3,2514.0,0.76593687]
[1729729920310,3.97711,2514.4,2514.0,0.76593687]
[1729729920509,3.9771,2514.4,2514.0,0.76593687]
[1729729920735,3.97727,2514.3,2514.0,0.76593687]
[1729729921137,3.97728,2514.3,2514.0,0.76593687]
[1729729921307,3.9771,2514.4,2514.1,0.8151]
[1729729922464,3.9771,2514.4,2514.1,2.05716056]
[1729729923332,3.97677,2514.6,2514.1,2.05716056]
[1729729923533,5.80279519,2514.6,2514.1,2.05716056]
[1729729923727,3.97709,2514.4,2514.1,2.05716056]
[1729729924346,3.97633,2514.9,2514.3,3.97716]
[1729729924347,3.97653,2514.8,2514.3,3.97716]
[1729729924554,3.97663,2514.7,2514.4,1.79315852]
[1729729924725,3.97653,2514.8,2514.4,1.79315852]
[1729729925134,4.77068,2514.9,2514.4,3.61918371]
[1729729925338,3.97664,2514.7,2514.4,0.8151]
[1729729925758,3.97686,2514.6,2514.4,0.8151]
[1729729928732,7.95373,2514.6,2514.4,0.8151]
[1729729928927,1.82602519,2514.8,2514.4,0.8151]
[1729729929134,3.97669,2514.7,2514.4,0.8151]
[1729729929332,3.97657,2514.8,2514.4,1.47695152]
[1729729929538,7.95311,2514.8,2514.4,1.47695152]
[1729729929794,3.97654,2514.8,2514.4,1.47695152]
[1729729930067,3.97663,2514.7,2514.4,1.47695152]
[1729729933479,3.97678,2514.6,2514.4,1.47695152]
[1729729933637,3.97678,2514.6,2514.4,0.8151]
[1729729935673,3.97693,2514.5,2514.4,0.8151]
[1729729937260,3.97679,2514.6,2514.4,0.8151]
[1729729938570,3.97663,2514.7,2514.4,0.8151]
[1729729938780,3.97682,2514.6,2514.4,0.8151]
[1729729940077,3.97663,2514.7,2514.4,0.8151]
[1729729941344,3.97663,2514.7,2514.4,1.87468152]
[1729729942295,4.39153591,2515.0,2514.5,5.80292519]
[1729729942440,0.41530591,2515.0,2514.9,2.58792519]
[1729729942643,3.97567,2515.3,2514.7,3.97654]
[1729729942644,0.7964,2515.1,2514.7,3.97654]
[1729729942874,0.7964,2515.1,2514.6,4.80115]
[1729729942875,3.97624,2515.0,2514.6,0.8245]
[1729729943079,3.97623,2515.0,2514.6,0.8245]
[1729729943250,3.97658,2514.8,2514.4,1.88408152]
[1729729943639,3.97658,2514.8,2514.4,3.71010671]
[1729729943960,3.97693,2514.5,2514.4,1.05958152]
[1729729944361,3.97678,2514.6,2514.4,1.05958152]
[1729729944539,4.77303,2514.7,2514.4,1.05958152]
[1729729945181,3.97663,2514.7,2514.4,1.05958152]
[1729729945356,3.97626,2515.0,2514.6,1.82602519]
[1729729945551,3.97626,2515.0,2514.5,6.94080431]
[1729729945788,3.97599,2515.1,2514.6,5.88231408]
[1729729946000,3.97568,2515.3,2515.0,0.8245]
[1729729946502,3.9759,2515.2,2515.0,0.8245]
[1729729948108,3.97567,2515.3,2515.0,0.8245]
[1729729948314,3.97637,2514.9,2514.7,0.8245]
[1729729948814,7.95275,2514.9,2514.7,0.8245]
[1729729949119,7.95275,2514.9,2514.6,19.96]
[1729729949120,3.97661,2514.7,2514.6,19.96]
[1729729949414,3.97661,2514.7,2514.5,0.8245]
[1729729949771,3.97661,2514.7,2514.5,1.11443004]
[1729729949972,3.97661,2514.7,2514.5,0.8245]
[1729729952404,3.97647,2514.8,2514.5,0.8245]
[1729729957016,3.97642,2514.9,2514.5,0.8245]
[1729729957517,3.97621,2515.0,2514.5,4.88086055]
[1729729957811,3.97588,2515.2,2514.7,0.8241]
[1729729958043,7.95184,2515.2,2514.7,0.8241]
[1729729958216,3.97588,2515.2,2514.7,3.97654]
[1729729958412,3.97568,2515.3,2514.9,0.8241]
[1729729958712,3.97558,2515.4,2514.9,4.80038]
[1729729961222,3.97578,2515.3,2514.9,0.8241]
[1729729961992,3.97551,2515.4,2515.0,0.8241]
[1729729962218,3.97568,2515.3,2515.1,0.480037]
[1729729962924,3.97547,2515.5,2515.1,0.480037]
[1729729963429,3.97551,2515.4,2515.1,0.480037]
[1729729963789,3.97547,2515.5,2515.1,0.480037]
[1729729963989,3.97568,2515.3,2515.1,0.480037]
[1729729964601,3.97568,2515.3,2515.0,0.8241]
[1729729966214,3.9756,2515.4,2515.0,0.8241]
[1729729966536,3.97547,2515.5,2515.1,0.07951038]
[1729729966838,3.97547,2515.5,2515.2,0.8241]
[1729729967330,7.95093,2515.5,2515.2,0.8241]
[1729729967629,3.97515,2515.7,2515.2,0.8241]
[1729729967792,3.97519,2515.6,2515.2,0.8241]
[1729729967999,3.97532,2515.6,2515.3,0.48]
[1729729968430,3.97515,2515.7,2515.3,0.55950412]
[1729729968731,3.97515,2515.7,2515.4,0.8241]
[1729729969098,3.97531,2515.6,2515.4,0.8241]
[1729729970219,3.97488,2515.8,2515.4,0.8241]
[1729729971632,3.97488,2515.8,2515.4,3.97548]
[1729729971792,3.97488,2515.8,2515.5,1.619205]
[1729729972409,3.97466,2516.0,2515.5,6.59256258]
[1729729972618,3.97466,2516.0,2515.7,0.8241]
[1729729972995,1.82212758,2516.0,2515.7,0.8241]
[1729729973206,3.97487,2515.8,2515.7,0.8241]
[1729729978513,3.97487,2515.8,2515.5,1.587805]
[1729729978839,3.97535,2515.5,2515.4,19.96]
[1729729981303,3.97535,2515.5,2515.3,0.7927]
[1729729982336,3.97519,2515.6,2515.3,0.7927]
[1729729982642,7.95048,2515.6,2515.3,0.7927]
[1729729982807,3.97519,2515.6,2515.3,0.7927]
[1729729983141,3.97519,2515.6,2515.3,1.47665027]
[1729729984502,7.95049,2515.6,2515.3,1.47665027]
[1729729984705,3.97579,2515.3,2515.1,1.0413918]
[1729729984941,4.77929,2515.3,2515.0,19.96]
[1729729985441,0.8035,2515.3,2515.0,19.96]
[1729729986840,4.77887,2515.5,2515.0,23.93611]
[1729729987000,6.60099758,2515.5,2515.0,23.93611]
[1729729987201,6.60099758,2515.5,2515.0,27.07325102]
[1729729987401,6.60099758,2515.5,2515.0,7.11325102]
[1729729987653,10.57642758,2515.5,2515.0,3.97611]
[1729729988006,6.60099758,2515.5,2515.0,3.97611]
[1729729988439,10.57642758,2515.5,2515.0,3.97611]
[1729729988647,3.97551,2515.4,2514.9,0.7927]
[1729729988811,5.79763758,2515.4,2515.0,0.24871666]
[1729729989010,6.60099758,2515.5,2515.0,3.97611]
[1729729989212,10.57646758,2515.5,2515.0,3.97611]
[1729729989849,8.75434,2515.5,2515.0,3.97611]
[1729729990007,10.57646758,2515.5,2515.0,3.97611]
[1729729990308,3.97558,2515.4,2514.9,6.59111758]
[1729729990511,3.97558,2515.4,2515.0,0.24871647]
[1729729990732,3.97558,2515.4,2515.0,3.97612]
[1729729991318,3.97558,2515.4,2515.1,0.2487137]
[1729729991521,3.97558,2515.4,2515.0,3.97612]
[1729729991815,3.97558,2515.4,2515.1,0.24871371]
[1729729992009,3.97558,2515.4,2515.0,3.97612]
[1729729992211,3.97558,2515.4,2515.1,0.24871406]
[1729729992406,0.8035,2515.5,2515.1,3.9759]
[1729729992645,3.9752,2515.6,2515.1,3.9759]
[1729729992813,1.82212758,2515.6,2515.1,3.9759]
[1729729993141,3.97536,2515.5,2515.1,3.9759]
[1729729993342,10.58771758,2515.7,2515.2,4.91699771]
[1729729993508,5.79742758,2515.6,2515.2,0.94125771]
[1729729994419,6.61255758,2515.7,2515.2,0.94125771]
[1729729994613,6.61255758,2515.7,2515.2,4.91699771]
[1729729995639,6.61255758,2515.7,2515.2,0.94125771]
[1729729995845,3.97528,2515.6,2515.2,0.94125771]
[1729729996856,3.97537,2515.5,2515.2,0.94125771]
[1729729997030,3.97537,2515.5,2515.1,3.97595]
[1729729997240,3.97537,2515.5,2515.2,0.24870476]
[1729729997549,7.9508,2515.5,2515.0,3.97612]
[1729729997706,3.97537,2515.5,2515.1,0.24870887]
[1729729997909,5.79749758,2515.5,2515.2,0.24870887]
[1729729998143,3.97551,2515.4,2515.0,3.97605]
[1729729998353,1.82212758,2515.5,2515.1,0.24871411]
[1729729998643,3.97543,2515.5,2515.0,5.03795691]
[1729729998940,3.97543,2515.5,2515.1,0.24871256]
[1729729999147,3.97543,2515.5,2515.0,5.03795691]
[1729729999308,3.97543,2515.5,2515.1,0.24871105]
[1729729999510,3.97543,2515.5,2515.0,5.03795691]
[1729729999823,5.79755758,2515.5,2515.1,1.01919059]
[1729730000012,5.79755758,2515.5,2515.1,0.77047831]
[1729730001039,3.97543,2515.5,2515.2,0.24870783]
[1729730001250,3.97543,2515.5,2515.1,0.77047831]
[1729730001546,3.97543,2515.5,2515.2,0.24870769]
[1729730001743,3.97543,2515.5,2515.1,0.77047831]
[1729730002213,3.97543,2515.5,2515.2,0.24870781]
[1729730002414,3.97543,2515.5,2515.1,0.77047831]
[1729730002642,3.97543,2515.5,2515.2,0.24871074]
[1729730002815,3.97543,2515.5,2515.1,0.77047831]
[1729730003150,3.97543,2515.5,2515.2,0.24871035]
[1729730003327,3.97543,2515.5,2515.1,0.77047831]
[1729730003651,3.97543,2515.5,2515.2,0.24870919]
[1729730003949,3.97543,2515.5,2515.1,0.77047831]
[1729730004136,3.97543,2515.5,2515.2,0.24870888]
[1729730004335,3.97543,2515.5,2515.0,9.01400691]
[1729730004634,3.97543,2515.5,2515.1,0.248709]
[1729730004832,3.97543,2515.5,2515.0,5.03795691]
[1729730005023,3.97543,2515.5,2515.1,0.24871308]
[1729730005220,3.97535,2515.5,2515.2,0.24871436]
[1729730005424,7.95079,2515.5,2515.0,5.03795691]
[1729730005620,3.97535,2515.5,2515.1,0.24871283]
[1729730005936,3.97535,2515.5,2515.2,0.24871283]
[1729730006136,3.97535,2515.5,2515.0,9.01400691]
[1729730006335,3.97535,2515.5,2515.1,0.24871049]
[1729730006535,3.97535,2515.5,2515.2,0.24871049]
[1729730006736,3.97535,2515.5,2515.0,9.01400691]
[1729730006946,7.95078,2515.5,2515.1,0.24871085]
[1729730007149,1.82212758,2515.2,2514.8,0.05199558]
[1729730007329,1.82212758,2515.2,2514.7,20.7442]
[1729730007330,6.63127758,2515.0,2514.9,0.24873118]
[1729730007655,6.63127758,2515.0,2514.6,0.05199558]
[1729730007656,4.80915,2515.0,2514.6,0.05199558]
[1729730007844,4.80915,2515.0,2514.7,0.24875316]
[1729730008044,4.80915,2515.0,2514.8,0.24875316]
[1729730008285,4.80915,2515.0,2514.5,4.81304558]
[1729730008415,4.80915,2515.0,2514.6,0.24875282]
[1729730008617,4.80915,2515.0,2514.7,0.24875282]
[1729730008817,4.80915,2515.0,2514.8,0.24875282]
[1729730009013,3.97631,2514.9,2514.5,4.81304558]
[1729730009251,3.97631,2514.9,2514.6,0.2487536]
[1729730009452,3.97631,2514.9,2514.5,4.76105]
[1729730009620,3.97631,2514.9,2514.6,0.24875379]
[1729730009820,3.97631,2514.9,2514.7,0.24875379]
[1729730010054,3.97631,2514.9,2514.8,0.24875379]
[1729730011841,3.97631,2514.9,2514.5,4.81305545]
[1729730012024,3.97631,2514.9,2514.6,0.24875786]
[1729730012241,3.97631,2514.9,2514.7,0.24875786]
[1729730012528,3.97631,2514.9,2514.2,19.96]
[1729730012529,4.80969,2514.7,2514.3,0.05200545]
[1729730012715,1.82212758,2514.6,2514.4,0.24877575]
[1729730012920,6.63181758,2514.7,2514.5,0.24877575]
[1729730013126,6.63181758,2514.7,2514.2,4.81350545]
[1729730013431,6.63181758,2514.7,2514.3,0.24877884]
[1729730013630,6.63181758,2514.7,2514.4,0.24877884]
[1729730013833,6.63181758,2514.7,2514.5,0.24877884]
[1729730014055,6.63181758,2514.7,2514.3,3.97723]
[1729730014262,6.63181758,2514.7,2514.4,0.24877824]
[1729730014430,6.63181758,2514.7,2514.5,0.24877824]
[1729730014633,6.63181758,2514.7,2514.2,8.79083545]
[1729730014833,6.63181758,2514.7,2514.3,0.24877856]
[1729730015194,6.63181758,2514.7,2514.0,4.81380545]
[1729730015195,3.97693,2514.5,2514.0,4.81380545]
[1729730015321,1.99991613,2514.7,2514.1,0.24881186]
[1729730015322,3.97718,2514.4,2514.1,0.24881186]
[1729730015520,6.63230758,2514.4,2514.2,0.24881186]
[1729730015755,6.63230758,2514.4,2514.0,0.7842]
[1729730015756,6.63230758,2514.4,2514.1,0.24881186]
[1729730015935,3.97726,2514.3,2513.9,19.96]
[1729730016137,5.79963758,2514.2,2513.9,19.96]
[1729730016361,9.77671758,2514.3,2514.0,0.24882739]
[1729730016523,9.77671758,2514.3,2513.9,19.96]
[1729730016854,3.97744,2514.2,2513.9,19.96]
[1729730017153,5.79938758,2514.3,2513.6,4.76246]
[1729730017154,1.82212758,2514.0,2513.6,4.76246]
[1729730017469,1.82212758,2514.0,2513.7,0.24883897]
[1729730017763,1.82212758,2514.0,2513.4,5.85257717]
[1729730017764,1.82212758,2513.8,2513.4,0.7842]
[1729730017936,3.97796,2513.9,2513.5,0.24886423]
[1729730018148,3.97796,2513.9,2513.4,0.7842]
[1729730018149,5.80017758,2513.8,2513.4,0.7842]
[1729730018350,1.82212758,2513.8,2513.4,0.7842]
[1729730018665,1.82212758,2513.5,2513.3,0.24886423]
[1729730018868,2.65512758,2513.7,2513.3,4.47991342]
[1729730019174,3.97808,2513.8,2513.3,4.47991342]
[1729730019378,5.80020758,2513.8,2513.3,4.47991342]
[1729730019554,3.97766,2514.1,2513.5,3.97836]
[1729730019762,6.63278758,2514.1,2513.6,3.97828]
[1729730020060,1.82212758,2514.0,2513.6,5.03460776]
[1729730021469,1.82212758,2514.0,2513.6,5.03455776]
[1729730022580,1.82212758,2513.9,2513.6,1.05632776]
[1729730022879,6.63302758,2513.9,2513.5,0.7842]
[1729730023047,1.82212758,2513.8,2513.5,0.7842]
[1729730023377,6.63302758,2513.9,2513.5,0.7842]
[1729730023957,4.8109,2513.9,2513.5,0.7842]
[1729730024158,3.97812,2513.8,2513.3,0.7842]
[1729730024354,3.97833,2513.7,2513.3,0.7842]
[1729730025671,3.9784,2513.6,2513.1,21.78212758]
[1729730025873,4.8114,2513.6,2513.1,26.54543758]
[1729730026075,0.833,2513.6,2513.1,29.59789934]
[1729730026309,0.833,2513.6,2513.1,27.77577176]
[1729730028218,4.81136,2513.6,2513.1,27.77577176]
[1729730028820,0.833,2513.6,2513.2,3.97895]
[1729730031516,0.833,2513.6,2513.3,3.97879]
[1729730031693,3.0,2513.8,2513.3,3.97879]
[1729730031694,0.833,2513.8,2513.4,4.774364]
[1729730032013,0.833,2513.8,2513.4,3.97859]
[1729730035425,3.97797,2513.9,2513.5,4.77998]
[1729730035938,4.80623,2514.0,2513.5,4.77992]
[1729730037825,0.8285,2514.0,2513.6,3.97827]